[Event "Titled Tuesday Blitz June 13 Early 2023"]
[White "Ansh M Shah"]
[Black "Sanchez, Robert"]
[WhiteFideId "25033379"]
[BlackFideId "2034360"]
[WhiteElo "2084"]
[BlackElo "1905"]
[Result "1-0"]
[Round "2"]
[TimeControl "180+2"]
[Date "2023.06.13"]
[WhiteClock "0:01:57"]
[BlackClock "0:02:37"]
[Board "238"]

1. d4 {[%clk 0:03:00]}  Nf6 {[%clk 0:02:59]} 2. c4 {[%clk 0:03:01]}  e6 {[%clk 0:02:59]} 3. g3 {[%clk 0:03:01]}  Bb4+ {[%clk 0:02:55]} 4. Nd2 {[%clk 0:02:54]}  O-O {[%clk 0:02:55]} 5. Bg2 {[%clk 0:02:48]}  c5 {[%clk 0:02:55]} 6. a3 {[%clk 0:02:47]}  Ba5 {[%clk 0:02:53]} 7. dxc5 {[%clk 0:02:46]}  Bc7 {[%clk 0:02:53]} 8. b4 {[%clk 0:02:47]}  d6 {[%clk 0:02:52]} 9. cxd6 {[%clk 0:02:46]}  Qxd6 {[%clk 0:02:53]} 10. Bb2 {[%clk 0:02:43]}  Rd8 {[%clk 0:02:53]} 11. Ngf3 {[%clk 0:02:43]}  Qe7 {[%clk 0:02:51]} 12. Qc2 {[%clk 0:02:42]}  Nbd7 {[%clk 0:02:50]} 13. O-O {[%clk 0:02:42]}  e5 {[%clk 0:02:51]} 14. Ng5 {[%clk 0:02:19]}  h6 {[%clk 0:02:45]} 15. Nge4 {[%clk 0:02:19]}  Nxe4 {[%clk 0:02:45]} 16. Nxe4 {[%clk 0:02:20]}  Nf6 {[%clk 0:02:43]} 17. Nxf6+ {[%clk 0:02:08]}  Qxf6 {[%clk 0:02:44]} 18. Rfd1 {[%clk 0:02:08]}  Bf5 {[%clk 0:02:44]} 19. Be4 {[%clk 0:02:07]}  Bh3 {[%clk 0:02:39]} 20. Bxb7 {[%clk 0:01:58]}  Rab8 {[%clk 0:02:39]} 21. Bg2 {[%clk 0:01:58]}  Bxg2 {[%clk 0:02:37]} 22. Kxg2 {[%clk 0:01:57]}  Bb6 {[%clk 0:02:37]} 1-0


[Site "https://www.chess.com"]

[Event "Titled Tuesday Blitz June 13 Early 2023"]
[White "Miladinovic, Igor"]
[Black "Carlsen, Magnus"]
[WhiteFideId "4203380"]
[BlackFideId "1503014"]
[WhiteElo "2568"]
[BlackElo "2858"]
[Result "1/2-1/2"]
[Round "3"]
[TimeControl "180+2"]
[Date "2023.06.13"]
[WhiteClock "0:00:16"]
[BlackClock "0:00:29"]
[Board "1"]

1. d4 {[%clk 0:03:00]}  Nf6 {[%clk 0:02:47]} 2. Bg5 {[%clk 0:03:00]}  e6 {[%clk 0:02:42]} 3. e3 {[%clk 0:03:00]}  h6 {[%clk 0:02:41]} 4. Bh4 {[%clk 0:02:59]}  c5 {[%clk 0:02:40]} 5. c3 {[%clk 0:02:59]}  b6 {[%clk 0:02:33]} 6. Nd2 {[%clk 0:02:58]}  cxd4 {[%clk 0:02:31]} 7. exd4 {[%clk 0:02:58]}  Bb7 {[%clk 0:02:31]} 8. Ngf3 {[%clk 0:02:56]}  Be7 {[%clk 0:02:30]} 9. Bxf6 {[%clk 0:02:56]}  Bxf6 {[%clk 0:02:30]} 10. Bd3 {[%clk 0:02:56]}  Nc6 {[%clk 0:02:28]} 11. Qe2 {[%clk 0:02:57]}  Qc7 {[%clk 0:02:26]} 12. Kf1 {[%clk 0:02:51]}  a6 {[%clk 0:02:21]} 13. Re1 {[%clk 0:02:47]}  Ne7 {[%clk 0:02:20]} 14. h4 {[%clk 0:02:41]}  Nd5 {[%clk 0:02:20]} 15. g3 {[%clk 0:02:41]}  Be7 {[%clk 0:02:20]} 16. a3 {[%clk 0:02:35]}  b5 {[%clk 0:02:17]} 17. Rg1 {[%clk 0:02:17]}  Nb6 {[%clk 0:02:15]} 18. Be4 {[%clk 0:02:13]}  Bxe4 {[%clk 0:02:09]} 19. Nxe4 {[%clk 0:02:10]}  Qc4 {[%clk 0:02:08]} 20. Ne5 {[%clk 0:02:08]}  Qxe2+ {[%clk 0:02:06]} 21. Kxe2 {[%clk 0:02:07]}  Nc4 {[%clk 0:02:04]} 22. Nd3 {[%clk 0:02:06]}  h5 {[%clk 0:01:56]} 23. Nd2 {[%clk 0:02:05]}  d6 {[%clk 0:01:55]} 24. a4 {[%clk 0:02:02]}  Kd7 {[%clk 0:01:53]} 25. axb5 {[%clk 0:02:00]}  axb5 {[%clk 0:01:53]} 26. Ra1 {[%clk 0:02:01]}  Rhb8 {[%clk 0:01:47]} 27. b3 {[%clk 0:01:52]}  Nb6 {[%clk 0:01:40]} 28. Nb4 {[%clk 0:01:51]}  g6 {[%clk 0:01:34]} 29. Kd3 {[%clk 0:01:51]}  d5 {[%clk 0:01:32]} 30. Na6 {[%clk 0:01:50]}  Rc8 {[%clk 0:01:28]} 31. b4 {[%clk 0:01:48]}  Na4 {[%clk 0:01:25]} 32. Nc5+ {[%clk 0:01:45]}  Kc6 {[%clk 0:01:26]} 33. Nf3 {[%clk 0:01:37]}  Bd6 {[%clk 0:01:24]} 34. Ng5 {[%clk 0:01:18]}  Rc7 {[%clk 0:01:22]} 35. Rgb1 {[%clk 0:01:09]}  Rca7 {[%clk 0:01:20]} 36. Nxa4 {[%clk 0:00:55]}  bxa4 {[%clk 0:01:21]} 37. Ra3 {[%clk 0:00:55]}  Kb5 {[%clk 0:01:21]} 38. f4 {[%clk 0:00:53]}  Re8 {[%clk 0:01:18]} 39. Nf3 {[%clk 0:00:52]}  f6 {[%clk 0:01:18]} 40. Re1 {[%clk 0:00:52]}  Rae7 {[%clk 0:01:12]} 41. Rea1 {[%clk 0:00:51]}  Ra7 {[%clk 0:01:08]} 42. Re1 {[%clk 0:00:51]}  Rc7 {[%clk 0:01:08]} 43. Re2 {[%clk 0:00:51]}  Rc6 {[%clk 0:01:06]} 44. Rea2 {[%clk 0:00:49]}  Rec8 {[%clk 0:01:05]} 45. Re2 {[%clk 0:00:48]}  R8c7 {[%clk 0:00:58]} 46. Rxe6 {[%clk 0:00:43]}  Bxb4 {[%clk 0:00:58]} 47. Rxc6 {[%clk 0:00:42]}  Rxc6 {[%clk 0:00:58]} 48. cxb4 {[%clk 0:00:42]}  Kxb4 {[%clk 0:00:59]} 49. Ra1 {[%clk 0:00:42]}  Rc3+ {[%clk 0:01:00]} 50. Ke2 {[%clk 0:00:41]}  a3 {[%clk 0:01:00]} 51. Nd2 {[%clk 0:00:34]}  Rxg3 {[%clk 0:01:00]} 52. Rb1+ {[%clk 0:00:32]}  Ka4 {[%clk 0:01:01]} 53. Rb6 {[%clk 0:00:32]}  Rg4 {[%clk 0:00:55]} 54. Rxf6 {[%clk 0:00:29]}  Rxh4 {[%clk 0:00:49]} 55. Rxg6 {[%clk 0:00:24]}  Rxf4 {[%clk 0:00:46]} 56. Ra6+ {[%clk 0:00:23]}  Kb4 {[%clk 0:00:46]} 57. Rb6+ {[%clk 0:00:23]}  Ka5 {[%clk 0:00:46]} 58. Rb8 {[%clk 0:00:20]}  h4 {[%clk 0:00:31]} 59. Nb3+ {[%clk 0:00:20]}  Ka6 {[%clk 0:00:31]} 60. Nc5+ {[%clk 0:00:20]}  Ka7 {[%clk 0:00:31]} 61. Rb7+ {[%clk 0:00:20]}  Ka8 {[%clk 0:00:31]} 62. Rb3 {[%clk 0:00:18]}  Rxd4 {[%clk 0:00:31]} 63. Rxa3+ {[%clk 0:00:19]}  Kb8 {[%clk 0:00:31]} 64. Rd3 {[%clk 0:00:19]}  Rxd3 {[%clk 0:00:29]} 65. Nxd3 {[%clk 0:00:20]}  Kc7 {[%clk 0:00:29]} 66. Nf4 {[%clk 0:00:19]}  Kd6 {[%clk 0:00:29]} 67. Kf3 {[%clk 0:00:17]}  d4 {[%clk 0:00:28]} 68. Ke4 {[%clk 0:00:17]}  Kc5 {[%clk 0:00:28]} 69. Kd3 {[%clk 0:00:16]}  h3 {[%clk 0:00:28]} 70. Nxh3 {[%clk 0:00:15]}  Kb6 {[%clk 0:00:29]} 71. Nf4 {[%clk 0:00:15]}  Ka7 {[%clk 0:00:30]} 72. Ne2 {[%clk 0:00:15]}  Kb7 {[%clk 0:00:29]} 73. Nxd4 {[%clk 0:00:16]} 1/2-1/2


[Site "https://www.chess.com"]

[Event "Titled Tuesday Blitz June 13 Early 2023"]
[White "Nihal Sarin"]
[Black "Horvath, Dominik"]
[WhiteFideId "25092340"]
[BlackFideId "1642561"]
[WhiteElo "2689"]
[BlackElo "2407"]
[Result "1-0"]
[Round "3"]
[TimeControl "180+2"]
[Date "2023.06.13"]
[WhiteClock "0:02:04"]
[BlackClock "0:01:14"]
[Board "2"]

1. d4 {[%clk 0:03:00]}  Nf6 {[%clk 0:02:58]} 2. Bg5 {[%clk 0:03:01]}  Ne4 {[%clk 0:02:56]} 3. Be3 {[%clk 0:03:00]}  d5 {[%clk 0:02:51]} 4. Nd2 {[%clk 0:03:00]}  Nf6 {[%clk 0:02:51]} 5. Ngf3 {[%clk 0:03:00]}  e6 {[%clk 0:02:39]} 6. g3 {[%clk 0:02:59]}  Be7 {[%clk 0:02:38]} 7. Bg2 {[%clk 0:02:59]}  O-O {[%clk 0:02:38]} 8. O-O {[%clk 0:03:00]}  b6 {[%clk 0:02:33]} 9. c4 {[%clk 0:02:58]}  Bb7 {[%clk 0:02:33]} 10. Rc1 {[%clk 0:02:57]}  Nbd7 {[%clk 0:02:34]} 11. h3 {[%clk 0:02:52]}  Rc8 {[%clk 0:02:33]} 12. Ne5 {[%clk 0:02:30]}  Nxe5 {[%clk 0:02:29]} 13. dxe5 {[%clk 0:02:31]}  Nd7 {[%clk 0:02:28]} 14. cxd5 {[%clk 0:02:28]}  Bxd5 {[%clk 0:02:26]} 15. Bxd5 {[%clk 0:02:24]}  exd5 {[%clk 0:02:27]} 16. Nf3 {[%clk 0:02:25]}  Nb8 {[%clk 0:01:59]} 17. Qa4 {[%clk 0:02:19]}  a6 {[%clk 0:01:56]} 18. Rfd1 {[%clk 0:02:19]}  c6 {[%clk 0:01:49]} 19. Qg4 {[%clk 0:02:16]}  Re8 {[%clk 0:01:38]} 20. e6 {[%clk 0:02:14]}  f6 {[%clk 0:01:29]} 21. Nd4 {[%clk 0:02:11]}  Bf8 {[%clk 0:01:24]} 22. Nf5 {[%clk 0:02:10]}  Kh8 {[%clk 0:01:23]} 23. e7 {[%clk 0:02:07]}  Rxe7 {[%clk 0:01:22]} 24. Nxe7 {[%clk 0:02:08]}  Bxe7 {[%clk 0:01:23]} 25. Bxb6 {[%clk 0:02:09]}  Qe8 {[%clk 0:01:23]} 26. Rxd5 {[%clk 0:02:07]}  f5 {[%clk 0:01:19]} 27. Rxf5 {[%clk 0:02:05]}  Nd7 {[%clk 0:01:18]} 28. Bd4 {[%clk 0:02:05]}  Bf8 {[%clk 0:01:17]} 29. Rxf8+ {[%clk 0:02:03]}  Qxf8 {[%clk 0:01:14]} 30. Qxd7 {[%clk 0:02:04]} 1-0


[Site "https://www.chess.com"]

[Event "Titled Tuesday Blitz June 13 Early 2023"]
[White "Stribuk, Artiom"]
[Black "Nakamura, Hikaru"]
[WhiteFideId "13515659"]
[BlackFideId "2016192"]
[WhiteElo "2303"]
[BlackElo "2874"]
[Result "0-1"]
[Round "3"]
[TimeControl "180+2"]
[Date "2023.06.13"]
[WhiteClock "0:00:01"]
[BlackClock "0:00:48"]
[Board "3"]

1. d4 {[%clk 0:03:00]}  e6 {[%clk 0:02:46]} 2. c4 {[%clk 0:03:00]}  b6 {[%clk 0:02:46]} 3. e4 {[%clk 0:02:59]}  Bb7 {[%clk 0:02:47]} 4. Bd3 {[%clk 0:02:58]}  Bb4+ {[%clk 0:02:44]} 5. Kf1 {[%clk 0:02:58]}  Be7 {[%clk 0:02:42]} 6. Nc3 {[%clk 0:02:57]}  d6 {[%clk 0:02:42]} 7. Nge2 {[%clk 0:02:45]}  Nf6 {[%clk 0:02:39]} 8. g3 {[%clk 0:02:39]}  O-O {[%clk 0:02:32]} 9. Kg2 {[%clk 0:02:39]}  Ne8 {[%clk 0:02:31]} 10. f3 {[%clk 0:02:30]}  Bg5 {[%clk 0:02:28]} 11. Bxg5 {[%clk 0:02:03]}  Qxg5 {[%clk 0:02:29]} 12. h4 {[%clk 0:02:03]}  Qe7 {[%clk 0:02:29]} 13. b4 {[%clk 0:02:02]}  Nc6 {[%clk 0:02:26]} 14. a3 {[%clk 0:01:49]}  a5 {[%clk 0:02:24]} 15. b5 {[%clk 0:01:47]}  Nb8 {[%clk 0:02:25]} 16. Qd2 {[%clk 0:01:31]}  e5 {[%clk 0:02:24]} 17. Qg5 {[%clk 0:01:29]}  Nf6 {[%clk 0:02:14]} 18. Nd5 {[%clk 0:01:21]}  Bxd5 {[%clk 0:02:00]} 19. cxd5 {[%clk 0:01:20]}  Nbd7 {[%clk 0:02:00]} 20. Rac1 {[%clk 0:01:20]}  Qd8 {[%clk 0:01:57]} 21. h5 {[%clk 0:01:16]}  h6 {[%clk 0:01:56]} 22. Qf5 {[%clk 0:01:14]}  Re8 {[%clk 0:01:54]} 23. Rc3 {[%clk 0:00:51]}  exd4 {[%clk 0:01:47]} 24. Nxd4 {[%clk 0:00:51]}  Re5 {[%clk 0:01:46]} 25. Nc6 {[%clk 0:00:24]}  Rxf5 {[%clk 0:01:47]} 26. Nxd8 {[%clk 0:00:23]}  Rxh5 {[%clk 0:01:43]} 27. Rxh5 {[%clk 0:00:22]}  Nxh5 {[%clk 0:01:44]} 28. Nb7 {[%clk 0:00:19]}  Nc5 {[%clk 0:01:36]} 29. Nxc5 {[%clk 0:00:19]}  bxc5 {[%clk 0:01:29]} 30. e5 {[%clk 0:00:20]}  Rb8 {[%clk 0:01:29]} 31. a4 {[%clk 0:00:19]}  g6 {[%clk 0:01:28]} 32. f4 {[%clk 0:00:13]}  Ng7 {[%clk 0:01:23]} 33. Kf3 {[%clk 0:00:13]}  h5 {[%clk 0:01:23]} 34. Ke4 {[%clk 0:00:10]}  Kf8 {[%clk 0:01:23]} 35. Be2 {[%clk 0:00:09]}  Ke7 {[%clk 0:01:20]} 36. g4 {[%clk 0:00:09]}  hxg4 {[%clk 0:01:20]} 37. Bxg4 {[%clk 0:00:10]}  f5+ {[%clk 0:01:20]} 38. exf6+ {[%clk 0:00:09]}  Kxf6 {[%clk 0:01:21]} 39. Kf3 {[%clk 0:00:08]}  Re8 {[%clk 0:01:17]} 40. Rb3 {[%clk 0:00:08]}  Nf5 {[%clk 0:01:07]} 41. Bxf5 {[%clk 0:00:04]}  Kxf5 {[%clk 0:01:08]} 42. b6 {[%clk 0:00:03]}  cxb6 {[%clk 0:01:09]} 43. Rxb6 {[%clk 0:00:04]}  Re4 {[%clk 0:01:10]} 44. Rxd6 {[%clk 0:00:05]}  Rxf4+ {[%clk 0:01:10]} 45. Ke3 {[%clk 0:00:04]}  Rxa4 {[%clk 0:01:11]} 46. Rc6 {[%clk 0:00:05]}  Re4+ {[%clk 0:01:07]} 47. Kf3 {[%clk 0:00:03]}  Rc4 {[%clk 0:01:07]} 48. d6 {[%clk 0:00:03]}  Ke6 {[%clk 0:01:02]} 49. d7+ {[%clk 0:00:04]}  Kxd7 {[%clk 0:01:03]} 50. Rxg6 {[%clk 0:00:04]}  Kc7 {[%clk 0:01:02]} 51. Ke3 {[%clk 0:00:05]}  a4 {[%clk 0:01:02]} 52. Kd3 {[%clk 0:00:05]}  Rb4 {[%clk 0:01:00]} 53. Kc3 {[%clk 0:00:05]}  Kb7 {[%clk 0:01:01]} 54. Rh6 {[%clk 0:00:05]}  a3 {[%clk 0:00:55]} 55. Rh2 {[%clk 0:00:05]}  Kc6 {[%clk 0:00:54]} 56. Ra2 {[%clk 0:00:04]}  Rh4 {[%clk 0:00:53]} 57. Rg2 {[%clk 0:00:02]}  Kb5 {[%clk 0:00:51]} 58. Kb3 {[%clk 0:00:02]}  Rh3+ {[%clk 0:00:51]} 59. Ka2 {[%clk 0:00:03]}  Kb4 {[%clk 0:00:51]} 60. Rc2 {[%clk 0:00:01]}  c4 {[%clk 0:00:51]} 61. Rg2 {[%clk 0:00:01]}  Rd3 {[%clk 0:00:52]} 62. Rf2 {[%clk 0:00:02]}  Re3 {[%clk 0:00:52]} 63. Rg2 {[%clk 0:00:02]}  Rb3 {[%clk 0:00:51]} 64. Rg1 {[%clk 0:00:02]}  Rb2+ {[%clk 0:00:51]} 65. Ka1 {[%clk 0:00:02]}  Rf2 {[%clk 0:00:49]} 66. Rg3 {[%clk 0:00:02]}  c3 {[%clk 0:00:48]} 67. Rg8 {[%clk 0:00:02]}  Rf1+ {[%clk 0:00:48]} 68. Ka2 {[%clk 0:00:02]}  c2 {[%clk 0:00:49]} 69. Rb8+ {[%clk 0:00:03]}  Ka5 {[%clk 0:00:49]} 70. Ra8+ {[%clk 0:00:03]}  Kb6 {[%clk 0:00:49]} 71. Rb8+ {[%clk 0:00:01]}  Ka7 {[%clk 0:00:48]} 72. Rb5 {[%clk 0:00:01]} 0-1


[Site "https://www.chess.com"]

[Event "Titled Tuesday Blitz June 13 Early 2023"]
[White "Gadimbayli, Abdulla"]
[Black "Caruana, Fabiano"]
[WhiteFideId "13404938"]
[BlackFideId "2020009"]
[WhiteElo "2386"]
[BlackElo "2832"]
[Result "0-1"]
[Round "3"]
[TimeControl "180+2"]
[Date "2023.06.13"]
[WhiteClock "0:00:00"]
[BlackClock "0:00:07"]
[Board "5"]

1. e4 {[%clk 0:03:00]}  c5 {[%clk 0:03:00]} 2. Nf3 {[%clk 0:03:00]}  d6 {[%clk 0:03:00]} 3. d4 {[%clk 0:03:00]}  cxd4 {[%clk 0:03:01]} 4. Nxd4 {[%clk 0:03:01]}  Nf6 {[%clk 0:03:01]} 5. Nc3 {[%clk 0:03:02]}  a6 {[%clk 0:03:02]} 6. g3 {[%clk 0:03:02]}  e5 {[%clk 0:03:01]} 7. Nf3 {[%clk 0:03:03]}  Be7 {[%clk 0:02:59]} 8. Bg2 {[%clk 0:03:03]}  O-O {[%clk 0:02:59]} 9. O-O {[%clk 0:03:04]}  Be6 {[%clk 0:02:52]} 10. Nh4 {[%clk 0:03:04]}  g6 {[%clk 0:02:48]} 11. Bh6 {[%clk 0:03:03]}  Re8 {[%clk 0:02:48]} 12. h3 {[%clk 0:03:04]}  Nbd7 {[%clk 0:02:47]} 13. Qd2 {[%clk 0:02:59]}  Rc8 {[%clk 0:02:45]} 14. Rad1 {[%clk 0:02:57]}  b5 {[%clk 0:02:39]} 15. a3 {[%clk 0:02:57]}  Nb6 {[%clk 0:02:39]} 16. Nf5 {[%clk 0:02:44]}  Bxf5 {[%clk 0:02:15]} 17. exf5 {[%clk 0:02:44]}  Nc4 {[%clk 0:02:16]} 18. Qc1 {[%clk 0:02:42]}  Nxa3 {[%clk 0:02:15]} 19. Rd3 {[%clk 0:02:03]}  Nxc2 {[%clk 0:02:07]} 20. Qxc2 {[%clk 0:01:54]}  b4 {[%clk 0:02:07]} 21. Qa4 {[%clk 0:00:59]}  bxc3 {[%clk 0:02:01]} 22. bxc3 {[%clk 0:01:00]}  Qb6 {[%clk 0:01:45]} 23. Bg5 {[%clk 0:00:53]}  e4 {[%clk 0:01:42]} 24. Rdd1 {[%clk 0:00:43]}  gxf5 {[%clk 0:01:40]} 25. Bxf6 {[%clk 0:00:30]}  Bxf6 {[%clk 0:01:40]} 26. Rd5 {[%clk 0:00:30]}  e3 {[%clk 0:01:24]} 27. Rxf5 {[%clk 0:00:28]}  Bxc3 {[%clk 0:01:12]} 28. fxe3 {[%clk 0:00:23]}  Qxe3+ {[%clk 0:01:13]} 29. Kh2 {[%clk 0:00:23]}  Kh8 {[%clk 0:01:10]} 30. Rxf7 {[%clk 0:00:20]}  Qg5 {[%clk 0:00:56]} 31. Qc2 {[%clk 0:00:12]}  Bg7 {[%clk 0:00:54]} 32. Qf2 {[%clk 0:00:11]}  Be5 {[%clk 0:00:52]} 33. Rf5 {[%clk 0:00:05]}  Qg6 {[%clk 0:00:44]} 34. Bd5 {[%clk 0:00:05]}  Red8 {[%clk 0:00:23]} 35. Be4 {[%clk 0:00:05]}  Bg7 {[%clk 0:00:15]} 36. Bb1 {[%clk 0:00:04]}  Qe6 {[%clk 0:00:14]} 37. Rh5 {[%clk 0:00:03]}  h6 {[%clk 0:00:14]} 38. Bf5 {[%clk 0:00:04]}  Qf7 {[%clk 0:00:14]} 39. Bxc8 {[%clk 0:00:04]}  Qxh5 {[%clk 0:00:14]} 40. Bg4 {[%clk 0:00:03]}  Qg5 {[%clk 0:00:13]} 41. Qc2 {[%clk 0:00:03]}  Re8 {[%clk 0:00:10]} 42. Rf5 {[%clk 0:00:03]}  Qe3 {[%clk 0:00:10]} 43. Rf2 {[%clk 0:00:03]}  Bd4 {[%clk 0:00:09]} 44. Rg2 {[%clk 0:00:03]}  Qg5 {[%clk 0:00:09]} 45. Qd3 {[%clk 0:00:03]}  Be5 {[%clk 0:00:09]} 46. Qxa6 {[%clk 0:00:03]}  Rg8 {[%clk 0:00:08]} 47. Qd3 {[%clk 0:00:03]}  h5 {[%clk 0:00:09]} 48. Bd1 {[%clk 0:00:04]}  h4 {[%clk 0:00:09]} 49. Qf3 {[%clk 0:00:03]}  hxg3+ {[%clk 0:00:09]} 50. Kh1 {[%clk 0:00:04]}  Qh6 {[%clk 0:00:08]} 51. Qh5 {[%clk 0:00:02]}  Qxh5 {[%clk 0:00:09]} 52. Bxh5 {[%clk 0:00:03]}  Rf8 {[%clk 0:00:09]} 53. Bg4 {[%clk 0:00:03]}  Kg7 {[%clk 0:00:07]} 54. Rc2 {[%clk 0:00:02]}  Kf6 {[%clk 0:00:08]} 55. Kg2 {[%clk 0:00:03]}  Kg5 {[%clk 0:00:08]} 56. Re2 {[%clk 0:00:02]}  Rf7 {[%clk 0:00:08]} 57. Rd2 {[%clk 0:00:03]}  Rf6 {[%clk 0:00:08]} 58. Rc2 {[%clk 0:00:03]}  Kh4 {[%clk 0:00:08]} 59. Rd2 {[%clk 0:00:03]}  Rf8 {[%clk 0:00:08]} 60. Rc2 {[%clk 0:00:04]}  Ra8 {[%clk 0:00:07]} 61. Rd2 {[%clk 0:00:03]}  Ra1 {[%clk 0:00:08]} 62. Re2 {[%clk 0:00:03]}  Bd4 {[%clk 0:00:08]} 63. Re6 {[%clk 0:00:04]}  Rg1+ {[%clk 0:00:07]} 64. Kf3 {[%clk 0:00:00]}  Rf1+ {[%clk 0:00:07]} 0-1


[Site "https://www.chess.com"]

[Event "Titled Tuesday Blitz June 13 Early 2023"]
[White "Sarana, Alexey"]
[Black "Albornoz Cabrera, Carlos Daniel"]
[WhiteFideId "24133795"]
[BlackFideId "3518736"]
[WhiteElo "2714"]
[BlackElo "2540"]
[Result "1-0"]
[Round "3"]
[TimeControl "180+2"]
[Date "2023.06.13"]
[WhiteClock "0:00:38"]
[BlackClock "0:00:00"]
[Board "9"]

1. c4 {[%clk 0:02:54]}  Nf6 {[%clk 0:02:57]} 2. Nc3 {[%clk 0:02:53]}  e6 {[%clk 0:02:57]} 3. e4 {[%clk 0:02:53]}  c5 {[%clk 0:02:57]} 4. e5 {[%clk 0:02:51]}  Ng8 {[%clk 0:02:57]} 5. Nf3 {[%clk 0:02:52]}  Nc6 {[%clk 0:02:57]} 6. d4 {[%clk 0:02:53]}  cxd4 {[%clk 0:02:57]} 7. Nxd4 {[%clk 0:02:53]}  Nxe5 {[%clk 0:02:54]} 8. Ndb5 {[%clk 0:02:53]}  a6 {[%clk 0:02:51]} 9. Nd6+ {[%clk 0:02:53]}  Bxd6 {[%clk 0:02:52]} 10. Qxd6 {[%clk 0:02:54]}  f6 {[%clk 0:02:51]} 11. Be3 {[%clk 0:02:53]}  Ne7 {[%clk 0:02:50]} 12. Bb6 {[%clk 0:02:48]}  Nf5 {[%clk 0:02:49]} 13. Qb4 {[%clk 0:02:47]}  Nc6 {[%clk 0:02:49]} 14. Qc5 {[%clk 0:02:47]}  d6 {[%clk 0:02:48]} 15. Bxd8 {[%clk 0:02:45]}  dxc5 {[%clk 0:02:49]} 16. Bb6 {[%clk 0:02:46]}  Ne5 {[%clk 0:02:42]} 17. Bxc5 {[%clk 0:02:43]}  Bd7 {[%clk 0:02:42]} 18. f4 {[%clk 0:02:34]}  Ng4 {[%clk 0:02:23]} 19. Be2 {[%clk 0:02:18]}  Nge3 {[%clk 0:02:23]} 20. Kf2 {[%clk 0:02:14]}  Nc2 {[%clk 0:01:56]} 21. Rac1 {[%clk 0:02:06]}  Ncd4 {[%clk 0:01:50]} 22. Bd3 {[%clk 0:02:03]}  Rc8 {[%clk 0:01:43]} 23. b4 {[%clk 0:02:03]}  h5 {[%clk 0:01:33]} 24. Ne4 {[%clk 0:01:35]}  e5 {[%clk 0:01:19]} 25. Rhe1 {[%clk 0:01:27]}  Ne6 {[%clk 0:01:01]} 26. fxe5 {[%clk 0:01:22]}  fxe5 {[%clk 0:01:01]} 27. Nd6+ {[%clk 0:01:08]}  Nxd6 {[%clk 0:01:01]} 28. Bxd6 {[%clk 0:01:08]}  Rc6 {[%clk 0:00:48]} 29. Bxe5 {[%clk 0:01:07]}  O-O+ {[%clk 0:00:48]} 30. Kg1 {[%clk 0:01:07]}  Nf4 {[%clk 0:00:47]} 31. Be4 {[%clk 0:01:02]}  Rb6 {[%clk 0:00:46]} 32. Bc7 {[%clk 0:00:52]}  Rbf6 {[%clk 0:00:26]} 33. Bxf4 {[%clk 0:00:52]}  Rxf4 {[%clk 0:00:26]} 34. Bxb7 {[%clk 0:00:53]}  h4 {[%clk 0:00:23]} 35. Bd5+ {[%clk 0:00:53]}  Kh7 {[%clk 0:00:22]} 36. Rf1 {[%clk 0:00:50]}  h3 {[%clk 0:00:16]} 37. Rxf4 {[%clk 0:00:48]}  Rxf4 {[%clk 0:00:17]} 38. Rc3 {[%clk 0:00:42]}  hxg2 {[%clk 0:00:17]} 39. Kxg2 {[%clk 0:00:43]}  Rd4 {[%clk 0:00:16]} 40. a3 {[%clk 0:00:42]}  g5 {[%clk 0:00:15]} 41. Kg3 {[%clk 0:00:42]}  Kh6 {[%clk 0:00:14]} 42. Bg2 {[%clk 0:00:42]}  Kh5 {[%clk 0:00:14]} 43. c5 {[%clk 0:00:42]}  Rg4+ {[%clk 0:00:11]} 44. Kf2 {[%clk 0:00:42]}  Rf4+ {[%clk 0:00:11]} 45. Kg1 {[%clk 0:00:43]}  Bb5 {[%clk 0:00:10]} 46. c6 {[%clk 0:00:42]}  Rf8 {[%clk 0:00:07]} 47. c7 {[%clk 0:00:41]}  Bd7 {[%clk 0:00:00]} 48. Rd3 {[%clk 0:00:38]} 1-0


[Site "https://www.chess.com"]

[Event "Titled Tuesday Blitz June 13 Early 2023"]
[White "Priasmoro, Novendra"]
[Black "Lazavik, Denis"]
[WhiteFideId "7105029"]
[BlackFideId "13515110"]
[WhiteElo "2412"]
[BlackElo "2560"]
[Result "1-0"]
[Round "3"]
[TimeControl "180+2"]
[Date "2023.06.13"]
[WhiteClock "0:00:14"]
[BlackClock "0:00:02"]
[Board "12"]

1. e4 {[%clk 0:03:00]}  c5 {[%clk 0:02:58]} 2. Nf3 {[%clk 0:03:00]}  e6 {[%clk 0:02:58]} 3. d4 {[%clk 0:02:59]}  cxd4 {[%clk 0:02:58]} 4. Nxd4 {[%clk 0:03:00]}  Nc6 {[%clk 0:02:59]} 5. Nc3 {[%clk 0:02:57]}  Qc7 {[%clk 0:02:59]} 6. g3 {[%clk 0:02:56]}  a6 {[%clk 0:02:56]} 7. Bg2 {[%clk 0:02:55]}  Bc5 {[%clk 0:02:56]} 8. Nxc6 {[%clk 0:02:50]}  dxc6 {[%clk 0:02:56]} 9. O-O {[%clk 0:02:51]}  e5 {[%clk 0:02:56]} 10. Na4 {[%clk 0:02:50]}  Ba7 {[%clk 0:02:54]} 11. c4 {[%clk 0:02:43]}  b5 {[%clk 0:02:54]} 12. Nc3 {[%clk 0:02:43]}  Nf6 {[%clk 0:02:51]} 13. Bg5 {[%clk 0:02:42]}  Be6 {[%clk 0:02:38]} 14. cxb5 {[%clk 0:02:42]}  axb5 {[%clk 0:02:38]} 15. Bxf6 {[%clk 0:02:41]}  gxf6 {[%clk 0:02:37]} 16. Rc1 {[%clk 0:02:41]}  Qd7 {[%clk 0:02:32]} 17. Qh5 {[%clk 0:02:41]}  Qd2 {[%clk 0:02:09]} 18. Nb1 {[%clk 0:02:30]}  Qg5 {[%clk 0:01:50]} 19. Qxg5 {[%clk 0:02:21]}  fxg5 {[%clk 0:01:49]} 20. Rxc6 {[%clk 0:02:22]}  Bxa2 {[%clk 0:01:47]} 21. Nc3 {[%clk 0:02:22]}  Bc4 {[%clk 0:01:47]} 22. Rd1 {[%clk 0:02:16]}  O-O {[%clk 0:01:43]} 23. Bf1 {[%clk 0:02:15]}  Bb3 {[%clk 0:01:42]} 24. Rd7 {[%clk 0:02:07]}  b4 {[%clk 0:01:39]} 25. Nd5 {[%clk 0:02:05]}  Ba4 {[%clk 0:01:34]} 26. Nxb4 {[%clk 0:01:49]}  Bd4 {[%clk 0:01:30]} 27. b3 {[%clk 0:01:07]}  Bxc6 {[%clk 0:01:27]} 28. Nxc6 {[%clk 0:01:08]}  Bc3 {[%clk 0:01:25]} 29. Bc4 {[%clk 0:01:05]}  Kg7 {[%clk 0:01:15]} 30. Ne7 {[%clk 0:01:01]}  Rad8 {[%clk 0:00:54]} 31. Nf5+ {[%clk 0:01:01]}  Kf6 {[%clk 0:00:51]} 32. Rc7 {[%clk 0:01:01]}  Rc8 {[%clk 0:00:42]} 33. Ra7 {[%clk 0:00:54]}  Ra8 {[%clk 0:00:38]} 34. Rc7 {[%clk 0:00:50]}  g4 {[%clk 0:00:25]} 35. f4 {[%clk 0:00:18]}  Ra1+ {[%clk 0:00:17]} 36. Kg2 {[%clk 0:00:18]}  Ra2+ {[%clk 0:00:17]} 37. Kf1 {[%clk 0:00:18]}  Kg6 {[%clk 0:00:09]} 38. Rc6+ {[%clk 0:00:17]}  f6 {[%clk 0:00:09]} 39. Rc7 {[%clk 0:00:18]}  h6 {[%clk 0:00:02]} 40. Rg7+ {[%clk 0:00:17]}  Kh5 {[%clk 0:00:02]} 41. Bf7+ {[%clk 0:00:16]}  Rxf7 {[%clk 0:00:02]} 42. Rxf7 {[%clk 0:00:17]}  exf4 {[%clk 0:00:03]} 43. gxf4 {[%clk 0:00:16]}  g3 {[%clk 0:00:03]} 44. hxg3 {[%clk 0:00:11]}  Kg4 {[%clk 0:00:04]} 45. Rc7 {[%clk 0:00:11]}  Bb4 {[%clk 0:00:03]} 46. Rc4 {[%clk 0:00:11]}  Ba5 {[%clk 0:00:02]} 47. Ra4 {[%clk 0:00:11]}  Rxa4 {[%clk 0:00:01]} 48. bxa4 {[%clk 0:00:12]}  Kf3 {[%clk 0:00:01]} 49. e5 {[%clk 0:00:12]}  fxe5 {[%clk 0:00:02]} 50. fxe5 {[%clk 0:00:13]}  Ke4 {[%clk 0:00:02]} 51. e6 {[%clk 0:00:14]} 1-0


[Site "https://www.chess.com"]